[Event "Reykjavik Open 2022"]
[Site "Reykjavik"]
[Date "2022.04.10"]
[Round "6.17"]
[White "De Wachter, Matthias"]
[Black "Larkin, Vladyslav"]
[Result "1-0"]
[ECO "A41"]
[WhiteElo "2322"]
[BlackElo "2399"]
[Annotator "NA RC"]
[PlyCount "69"]
[EventDate "2022.04.06"]
[EventCountry "ISL"]
[SourceTitle "playchess.com"]
[Source "ChessBase"]
[SourceQuality "1"]
[TimeControl "40/5400+30:1800+30"]

1. d4 {[%emt 0:00:08]} Nc6 {[%emt 0:11:24]} 2. Nf3 {[%emt 0:01:32]} d6 {[%emt 0:00:07]} 3. d5 {[%emt 0:16:40]} Ne5 {[%emt 0:00:08]} 4. Nxe5 {[%emt 0:00:14]} dxe5 {[%emt 0:00:07]} 5. c4 {[%emt 0:00:29]} e6 {[%emt 0:00:27]} 6. Nc3 {[%emt 0:02:14]} Nf6 {[%emt 0:03:40]} 7. g3 {[%emt 0:03:34]} exd5 {[%emt 0:08:11]} 8. cxd5 {[%emt 0:00:13]} h6 {[%emt 0:00:10]} 9. Bg2 {[%emt 0:01:54]} Bd6 {[%emt 0:00:05]} 10. O-O {[%emt 0:02:09]} a6 {[%emt 0:00:09]} 11. h3 {[%emt 0:09:44]} Qe7 {[%emt 0:01:16]} 12. e4 {[%emt 0:06:23]} Bd7 {[%emt 0:05:59]} 13. Be3 {[%emt 0:03:15]} O-O {[%emt 0:10:56]} 14. Rc1 {[%emt 0:08:40]} b5 {[%emt 0:14:12]} 15. Ne2 {[%emt 0:04:06]} Rac8 {[%emt 0:05:41]} 16. g4 {[%emt 0:05:00]} c6 {[%emt 0:00:15]} 17. dxc6 {[%emt 0:01:39]} Bxc6 {[%emt 0:00:25]} 18. Ng3 {[%emt 0:00:22]} Qe6 {[%emt 0:02:19]} 19. Qe2 {[%emt 0:17:44]} Rfe8 {[%emt 0:00:36]} 20. Rfd1 {[%emt 0:04:08]} Bf8 {[%emt 0:00:11]} 21. f3 {[%emt 0:00:55]} Bb7 {[%emt 0:09:03]} 22. b3 {[%emt 0:01:15]} Nd7 {[%emt 0:04:01]} 23. Nf5 {[%emt 0:01:24]} Ba3 {[%emt 0:00:58]} 24. Rxc8 {[%emt 0:01:44]} Rxc8 {[%emt 0:00:04]} 25. Qd2 {[%emt 0:00:45]} Nf8 {[%emt 0:01:09]} 26. Qa5 {[%emt 0:01:24]} Bb2 {[%emt 0:10:41]} 27. Rd6 {[%emt 0:00:29]} Qe8 {[%emt 0:00:05]} 28. Qb6 {[%emt 0:00:48]} Rb8 {[%emt 0:00:30]} 29. Qc7 {[%emt 0:00:12]} Ba8 {[%emt 0:03:38]} 30. Rxa6 {[%emt 0:01:12]} Bd4 {[%emt 0:05:34]} 31. Bxd4 {[%emt 0:01:07]} exd4 {[%emt 0:00:04]} 32. Nd6 {[%emt 0:00:14]} Qd8 {[%emt 0:02:12]} 33. Qxf7+ {[%emt 0:00:23]} Kh7 {[%emt 0:01:48]} 34. Nf5 {[%emt 0:00:43]} Qg5 {[%emt 0:00:06]} 35. Rxh6+ {[%emt 0:01:12]} 1-0

[Event "Reykjavik Open 2022"]
[Site "Reykjavik"]
[Date "2022.04.10"]
[Round "6.18"]
[White "Korley, Kassa"]
[Black "Sigamoney, Cyril S"]
[Result "1-0"]
[ECO "D11"]
[WhiteElo "2399"]
[BlackElo "1960"]
[Annotator "NA RC"]
[PlyCount "79"]
[EventDate "2022.04.06"]
[EventCountry "ISL"]
[SourceTitle "playchess.com"]
[Source "ChessBase"]
[SourceQuality "1"]
[TimeControl "40/5400+30:1800+30"]

1. d4 {[%emt 0:00:03]} d5 {[%emt 0:00:13]} 2. c4 {[%emt 0:00:06]} c6 {[%emt 0:00:09]} 3. Nf3 {[%emt 0:00:05]} Nf6 {[%emt 0:00:05]} 4. g3 {[%emt 0:00:05]} a6 {[%emt 0:01:50]} 5. Bg2 {[%emt 0:01:34]} dxc4 {[%emt 0:10:01]} 6. O-O {[%emt 0:01:52]} Bf5 {[%emt 0:05:11]} 7. b3 {[%emt 0:13:15]} c3 {[%emt 0:16:45]} 8. Nxc3 {[%emt 0:00:42]} e6 {[%emt 0:03:54]} 9. Bb2 {[%emt 0:06:41]} Be7 {[%emt 0:06:11]} 10. Ne5 {[%emt 0:03:47]} h6 {[%emt 0:03:47]} 11. e4 {[%emt 0:00:05]} Bh7 {[%emt 0:00:11]} 12. d5 {[%emt 0:02:05]} exd5 {[%emt 0:05:37]} 13. exd5 {[%emt 0:00:10]} O-O {[%emt 0:00:18]} 14. dxc6 {[%emt 0:12:10]} Nxc6 {[%emt 0:01:44]} 15. Nxc6 {[%emt 0:03:22]} bxc6 {[%emt 0:00:15]} 16. Bxc6 {[%emt 0:01:44]} Rb8 {[%emt 0:01:24]} 17. Qf3 {[%emt 0:05:13]} Qd3 {[%emt 0:14:14]} 18. Qxd3 {[%emt 0:04:26]} Bxd3 {[%emt 0:00:07]} 19. Rfd1 {[%emt 0:00:12]} Rfd8 {[%emt 0:00:27]} 20. Rac1 {[%emt 0:17:29]} Bb4 {[%emt 0:07:37]} 21. Nd5 {[%emt 0:01:19]} Nxd5 {[%emt 0:12:20]} 22. Rxd3 {[%emt 0:00:08]} Ne7 {[%emt 0:00:33]} 23. Bd7 {[%emt 0:01:50]} Rbc8 {[%emt 0:06:58]} 24. Rxc8 {[%emt 0:07:47]} Nxc8 {[%emt 0:00:11]} 25. a3 {[%emt 0:03:55]} Be7 {[%emt 0:01:32]} 26. Bf5 {[%emt 0:01:14]} Nd6 {[%emt 0:00:28]} 27. Bg4 {[%emt 0:00:13]} f5 {[%emt 0:01:07]} 28. Be2 {[%emt 0:01:56]} Rc8 {[%emt 0:00:17]} 29. Rc3 {[%emt 0:00:55]} Rxc3 {[%emt 0:00:14]} 30. Bxc3 {[%emt 0:00:10]} Nb5 {[%emt 0:00:21]} 31. Bxb5 {[%emt 0:00:44]} axb5 {[%emt 0:00:09]} 32. a4 {[%emt 0:00:02]} bxa4 {[%emt 0:00:14]} 33. bxa4 {[%emt 0:00:03]} Bc5 {[%emt 0:00:16]} 34. a5 {[%emt 0:00:43]} Kf7 {[%emt 0:00:13]} 35. Be5 {[%emt 0:00:39]} Ba7 {[%emt 0:00:18]} 36. Bf4 {[%emt 0:02:11]} Ke6 {[%emt 0:00:35]} 37. Be3 {[%emt 0:01:17]} Bxe3 {[%emt 0:01:10]} 38. fxe3 {[%emt 0:00:03]} Kd5 {[%emt 0:00:08]} 39. Kf2 {[%emt 0:00:05]} g5 {[%emt 0:00:26]} 40. Kf3 {[%emt 0:00:00]} 1-0

[Event "Reykjavik Open 2022"]
[Site "Reykjavik"]
[Date "2022.04.10"]
[Round "6.19"]
[White "Tania, Sachdev"]
[Black "Vemparala, Nikash"]
[Result "1-0"]
[ECO "D36"]
[WhiteElo "2392"]
[BlackElo "1998"]
[Annotator "NA RC"]
[PlyCount "89"]
[EventDate "2022.04.06"]
[EventCountry "ISL"]
[SourceTitle "playchess.com"]
[Source "ChessBase"]
[SourceQuality "1"]
[TimeControl "40/5400+30:1800+30"]

1. d4 {[%emt 0:00:18]} d5 {[%emt 0:00:12]} 2. Nf3 {[%emt 0:00:10]} Nf6 {[%emt 0:00:11]} 3. c4 {[%emt 0:00:05]} c6 {[%emt 0:00:05]} 4. Nc3 {[%emt 0:00:08]} e6 {[%emt 0:00:18]} 5. Bg5 {[%emt 0:01:48]} Nbd7 {[%emt 0:02:21]} 6. cxd5 {[%emt 0:00:55]} exd5 {[%emt 0:00:17]} 7. e3 {[%emt 0:00:03]} Bd6 {[%emt 0:02:49]} 8. Bd3 {[%emt 0:01:20]} O-O {[%emt 0:01:35]} 9. Qc2 {[%emt 0:00:08]} h6 {[%emt 0:01:40]} 10. Bh4 {[%emt 0:01:56]} Qc7 {[%emt 0:03:51]} 11. O-O {[%emt 0:14:01]} Re8 {[%emt 0:04:34]} 12. Rab1 {[%emt 0:03:31]} Ng4 {[%emt 0:07:44]} 13. Bg3 {[%emt 0:01:43]} Bxg3 {[%emt 0:07:15]} 14. hxg3 {[%emt 0:00:21]} Ngf6 {[%emt 0:03:44]} 15. b4 {[%emt 0:01:20]} Qd6 {[%emt 0:10:46]} 16. Rfc1 {[%emt 0:13:42]} a6 {[%emt 0:05:04]} 17. a4 {[%emt 0:01:27]} Nf8 {[%emt 0:15:31]} 18. b5 {[%emt 0:05:28]} axb5 {[%emt 0:01:36]} 19. axb5 {[%emt 0:00:03]} Bd7 {[%emt 0:02:56]} 20. bxc6 {[%emt 0:04:47]} bxc6 {[%emt 0:00:59]} 21. Na4 {[%emt 0:03:41]} Rac8 {[%emt 0:03:43]} 22. Ne5 {[%emt 0:10:29]} Rxe5 {[%emt 0:03:18]} 23. dxe5 {[%emt 0:00:11]} Qxe5 {[%emt 0:00:05]} 24. Nb6 {[%emt 0:10:06]} Rc7 {[%emt 0:03:24]} 25. Qa4 {[%emt 0:04:29]} c5 {[%emt 0:01:39]} 26. Nxd7 {[%emt 0:08:31]} N8xd7 {[%emt 0:00:18]} 27. Qa8+ {[%emt 0:01:02]} Nf8 {[%emt 0:02:38]} 28. Rb8 {[%emt 0:02:25]} N6d7 {[%emt 0:02:31]} 29. Re8 {[%emt 0:00:27]} Qd6 {[%emt 0:00:38]} 30. Qd8 {[%emt 0:01:26]} Rb7 {[%emt 0:04:42]} 31. Bf5 {[%emt 0:01:45]} Qf6 {[%emt 0:01:53]} 32. Qc8 {[%emt 0:04:53]} Rb8 {[%emt 0:01:40]} 33. Rxf8+ {[%emt 0:01:03]} Nxf8 {[%emt 0:00:20]} 34. Qxb8 {[%emt 0:00:07]} Qxf5 {[%emt 0:00:05]} 35. Rxc5 {[%emt 0:00:08]} Qd3 {[%emt 0:00:43]} 36. Qb5 {[%emt 0:00:48]} Qd1+ {[%emt 0:00:25]} 37. Qf1 {[%emt 0:00:04]} Qb3 {[%emt 0:00:23]} 38. Rb5 {[%emt 0:00:25]} Qa2 {[%emt 0:01:26]} 39. Qd1 {[%emt 0:00:29]} Ne6 {[%emt 0:00:44]} 40. Rxd5 {[%emt 0:00:00]} Qb2 {[%emt 0:00:00]} 41. Ra5 {[%emt 0:02:29]} Qb6 {[%emt 0:02:53]} 42. Ra8+ {[%emt 0:00:36]} Kh7 {[%emt 0:00:43]} 43. Qc2+ {[%emt 0:00:20]} g6 {[%emt 0:00:16]} 44. Qc8 {[%emt 0:00:23]} Qb1+ {[%emt 0:00:35]} 45. Kh2 {[%emt 0:00:02]} 1-0

[Event "Reykjavik Open 2022"]
[Site "Reykjavik"]
[Date "2022.04.10"]
[Round "6.20"]
[White "Bergsson, Stefan"]
[Black "Sadhwani, Raunak"]
[Result "0-1"]
[ECO "E71"]
[WhiteElo "2095"]
[BlackElo "2616"]
[Annotator "TA"]
[PlyCount "64"]
[EventDate "2022.04.06"]
[EventCountry "ISL"]
[SourceTitle "playchess.com"]
[Source "ChessBase"]
[SourceQuality "1"]
[TimeControl "40/5400+30:1800+30"]

{[%evp 11,63,18,49,14,50,12,27,0,5,6,10,0,-1,0,6,-17,-22,-104,-108,-83,-48,-20,0,-20,0,-9,10,12,42,12,8,-35,-24,-103,-102,-97,-99,-92,-77,-194,-201,-190,-195,-689,-447,-645,-644,-767,-756,-29990,-29991,-29992,-5147,-29999]} 1. d4 {[%emt 0:08:34]} Nf6 {[%emt 0:00:05]} 2. c4 {[%emt 0:00:37]} g6 {[%emt 0:00:12]} 3. Nc3 {[%emt 0:00:37]} Bg7 {[%emt 0:00:03]} 4. e4 {[%emt 0:01:32]} d6 {[%emt 0:00:04]} 5. h3 {[%emt 0:01:29]} O-O {[%emt 0:00:42]} 6. Be3 {[%emt 0:01:45]} c6 {[%emt 0:01:41]} 7. Bd3 {[%emt 0:08:44] E71: King's Indian: 4 e4 d6 5 h3.} a6 {[%emt 0:03:06]} 8. Nge2 {[%emt 0:02:13]} b5 {[%emt 0:00:49]} 9. cxb5 {[%emt 0:01:29] White has an edge.} axb5 {[%emt 0:00:40] [#]} 10. a3 $146 {[%emt 0:00:59]} ({Predecessor:} 10. O-O Nbd7 11. a3 e5 12. d5 cxd5 13. exd5 b4 14. axb4 Bb7 15. Rxa8 Qxa8 16. Bb5 {0-1 (49) Vazquez,F (2207)-Chernobay,A (2490) Chess.com INT 2020}) 10... Bb7 {[%emt 0:01:46]} 11. O-O {[%emt 0:01:04]} e5 {[%emt 0:04:47]} 12. Qd2 {[%emt 0:05:57]} Nbd7 {[%emt 0:08:56][%cal Bb8d7,Bd7e5,Be5d3][%mdl 32]} 13. dxe5 {[%emt 0:06:03]} Nxe5 {[%emt 0:00:26]} 14. f4 {[%emt 0:01:30]} (14. Rfd1 $11 {keeps the balance.}) 14... Nxd3 $17 {[%emt 0:01:35]} 15. Qxd3 {[%emt 0:00:02]} Qe7 {[%emt 0:07:09]} (15... c5 {is interesting.} 16. e5 dxe5 17. Qxb5 Ba6) 16. Rad1 {[%emt 0:02:29]} Rad8 {[%emt 0:00:35][%cal Ba8d8,Bd8d7,Bd7e7][%mdl 32]} 17. Rfe1 {[%emt 0:01:18]} Rfe8 {[%emt 0:04:48]} 18. Ng3 {[%emt 0:06:29]} h5 {[%emt 0:02:03][%cal Bh7h5,Bh5h4][%mdl 32]} 19. Bb6 {[%emt 0:04:46] Hoping for e5.} Rd7 {[%emt 0:00:15]} 20. Bf2 {[%emt 0:00:11]} Qd8 {[%emt 0:03:35]} 21. Bd4 {[%emt 0:05:56]} h4 {[%emt 0:10:26]} 22. Nh1 {[%emt 0:03:17]} (22. Nf1 $11) 22... c5 {[%emt 0:00:44]} 23. Bxf6 {[%emt 0:13:39]} Qxf6 {[%emt 0:00:14]} ({Much weaker is} 23... Bxf6 $6 24. e5 Bg7 25. Qxb5 $15) 24. Qxb5 {[%emt 0:02:12]} Rde7 {[%emt 0:00:21]} 25. Rf1 {[%emt 0:02:50]} (25. Nf2 $17 {keeps fighting.}) 25... Bxe4 $19 {[%emt 0:00:54]} 26. Nf2 {[%emt 0:03:13] [#]} Ba8 {[%emt 0:00:31] A strong pair of Bishops.} 27. f5 {[%emt 0:03:49]} (27. Qc4) 27... Qxf5 {[%emt 0:04:36]} 28. Nfe4 {[%emt 0:02:18]} (28. Ng4 $142 Qe6 29. Rd2) 28... Qe5 {[%emt 0:01:08]} 29. Rfe1 {[%emt 0:04:44]} Qh5 {[%emt 0:01:57]} ({And not} 29... Bxe4 30. Rxe4 Qg3 31. Qxe8+ Rxe8 32. Rxe8+ Kh7 33. Ne2 $17) 30. Nxd6 {[%emt 0:05:05]} Rxe1+ {[%emt 0:00:27]} 31. Kf2 {[%emt 0:00:24] [#]} Qxd1 {[%emt 0:00:57]} (31... Bxc3 $142 $1 32. Qxe8+ Rxe8 33. Nxe8 Qxd1 34. bxc3 Qd2+ 35. Kf1 Bxg2+ 36. Kg1 Bxh3 37. Nf6+ Kh8 38. Kh1 Qg2#) 32. Nxe8 {[%emt 0:00:44]} Bd4# {[%emt 0:00:04] Weighted Error Value: White=1.07/Black=0.52} 0-1

[Event "Reykjavik Open 2022"]
[Site "Reykjavik"]
[Date "2022.04.10"]
[Round "6.21"]
[White "Thorhallsson, Throstur"]
[Black "Cramling Bellon, Anna"]
[Result "1-0"]
[ECO "B22"]
[WhiteElo "2414"]
[BlackElo "2057"]
[Annotator "NA RC"]
[PlyCount "91"]
[EventDate "2022.04.06"]
[EventCountry "ISL"]
[SourceTitle "playchess.com"]
[Source "ChessBase"]
[SourceQuality "1"]
[TimeControl "40/5400+30:1800+30"]

1. e4 {[%emt 0:00:03]} c5 {[%emt 0:00:41]} 2. Nf3 {[%emt 0:00:15]} e6 {[%emt 0:00:20]} 3. c3 {[%emt 0:02:10]} Nf6 {[%emt 0:03:52]} 4. e5 {[%emt 0:00:37]} Nd5 {[%emt 0:00:12]} 5. g3 {[%emt 0:01:15]} Nc6 {[%emt 0:01:54]} 6. Bg2 {[%emt 0:00:52]} d6 {[%emt 0:03:42]} 7. exd6 {[%emt 0:01:07]} Bxd6 {[%emt 0:00:22]} 8. O-O {[%emt 0:00:23]} O-O {[%emt 0:00:36]} 9. d4 {[%emt 0:00:43]} cxd4 {[%emt 0:03:48]} 10. Nxd4 {[%emt 0:00:25]} Nxd4 {[%emt 0:06:14]} 11. Qxd4 {[%emt 0:00:26]} Qb6 {[%emt 0:13:45]} 12. Qd3 {[%emt 0:16:04]} Bd7 {[%emt 0:07:05]} 13. Nd2 {[%emt 0:04:25]} Bb5 {[%emt 0:02:01]} 14. c4 {[%emt 0:02:32]} Nb4 {[%emt 0:00:58]} 15. Qe2 {[%emt 0:07:30]} Bc6 {[%emt 0:06:26]} 16. Ne4 {[%emt 0:02:12]} Be7 {[%emt 0:00:45]} 17. a3 {[%emt 0:07:58]} Bxe4 {[%emt 0:04:32]} 18. Qxe4 {[%emt 0:00:53]} Nc6 {[%emt 0:00:46]} 19. b4 {[%emt 0:00:20]} Bf6 {[%emt 0:05:39]} 20. Be3 {[%emt 0:04:46]} Qc7 {[%emt 0:01:23]} 21. Rad1 {[%emt 0:04:11]} Rfd8 {[%emt 0:00:55]} 22. c5 {[%emt 0:03:07]} a6 {[%emt 0:15:06]} 23. Bf3 {[%emt 0:05:20]} Qe5 {[%emt 0:03:26]} 24. a4 {[%emt 0:07:51]} Qxe4 {[%emt 0:05:39]} 25. Bxe4 {[%emt 0:00:30]} Rxd1 {[%emt 0:04:10]} 26. Rxd1 {[%emt 0:00:40]} Rd8 {[%emt 0:00:03]} 27. Rb1 {[%emt 0:01:10]} Bd4 {[%emt 0:04:49]} 28. b5 {[%emt 0:05:50]} axb5 {[%emt 0:00:04]} 29. axb5 {[%emt 0:00:47]} Na5 {[%emt 0:01:08]} 30. c6 {[%emt 0:02:36]} Bxe3 {[%emt 0:01:11]} 31. fxe3 {[%emt 0:00:14]} f5 {[%emt 0:00:10]} 32. Bf3 {[%emt 0:02:53]} bxc6 {[%emt 0:00:21]} 33. bxc6 {[%emt 0:00:13]} Rc8 {[%emt 0:00:09]} 34. Rc1 {[%emt 0:02:20]} Rc7 {[%emt 0:03:07]} 35. Rc5 {[%emt 0:03:08]} Nb3 {[%emt 0:00:13]} 36. Rb5 {[%emt 0:00:07]} Nd2 {[%emt 0:01:31]} 37. Rb8+ {[%emt 0:00:05]} Kf7 {[%emt 0:00:07]} 38. Rb7 {[%emt 0:00:09]} Nxf3+ {[%emt 0:00:23]} 39. Kf2 {[%emt 0:00:05]} Ne5 {[%emt 0:01:22]} 40. Rxc7+ {[%emt 0:00:00]} Kf8 {[%emt 0:00:00]} 41. Rxg7 {[%emt 0:05:11]} Nxc6 {[%emt 0:02:27]} 42. Rxh7 {[%emt 0:00:06]} Ne5 {[%emt 0:00:11]} 43. h3 {[%emt 0:00:25]} Nd3+ {[%emt 0:01:00]} 44. Kf3 {[%emt 0:00:13]} Kg8 {[%emt 0:00:42]} 45. Rc7 {[%emt 0:01:43]} e5 {[%emt 0:00:34]} 46. Rd7 {[%emt 0:01:28]} 1-0

[Event "Reykjavik Open 2022"]
[Site "Reykjavik"]
[Date "2022.04.10"]
[Round "6.22"]
[White "Mai, Aron Thor"]
[Black "Thorfinnsson, Bragi"]
[Result "0-1"]
[ECO "B07"]
[WhiteElo "2081"]
[BlackElo "2419"]
[Annotator "NA RC"]
[PlyCount "96"]
[EventDate "2022.04.06"]
[EventCountry "ISL"]
[SourceTitle "playchess.com"]
[Source "ChessBase"]
[SourceQuality "1"]
[TimeControl "40/5400+30:1800+30"]

1. e4 {[%emt 0:00:03]} d6 {[%emt 0:03:18]} 2. d4 {[%emt 0:00:10]} Nf6 {[%emt 0:00:20]} 3. Nc3 {[%emt 0:00:06]} Nbd7 {[%emt 0:00:40]} 4. h3 {[%emt 0:01:26]} e5 {[%emt 0:02:37]} 5. Nge2 {[%emt 0:00:10]} c6 {[%emt 0:01:37]} 6. g4 {[%emt 0:01:11]} h6 {[%emt 0:10:59]} 7. Bg2 {[%emt 0:02:07]} b5 {[%emt 0:03:22]} 8. O-O {[%emt 0:02:57]} b4 {[%emt 0:02:58]} 9. Na4 {[%emt 0:02:37]} Ba6 {[%emt 0:02:10]} 10. Re1 {[%emt 0:00:55]} Bb5 {[%emt 0:02:35]} 11. b3 {[%emt 0:02:06]} Bxa4 {[%emt 0:04:29]} 12. bxa4 {[%emt 0:00:08]} c5 {[%emt 0:00:49]} 13. dxe5 {[%emt 0:01:43]} dxe5 {[%emt 0:00:18]} 14. Ng3 {[%emt 0:01:49]} g6 {[%emt 0:00:33]} 15. f4 {[%emt 0:05:18]} Qc7 {[%emt 0:02:21]} 16. f5 {[%emt 0:36:30]} c4 {[%emt 0:03:47]} 17. Qf3 {[%emt 0:02:15]} Bc5+ {[%emt 0:02:26]} 18. Kh1 {[%emt 0:02:33]} h5 {[%emt 0:04:15]} 19. g5 {[%emt 0:04:27]} Nh7 {[%emt 0:08:16]} 20. h4 {[%emt 0:08:26]} O-O-O {[%emt 0:00:12]} 21. Bf1 {[%emt 0:03:47]} Bd4 {[%emt 0:05:22]} 22. Rb1 {[%emt 0:00:59]} Bc3 {[%emt 0:00:34]} 23. Re3 {[%emt 0:01:28]} Nb6 {[%emt 0:04:11]} 24. Rxc3 {[%emt 0:04:43]} bxc3 {[%emt 0:00:08]} 25. a5 {[%emt 0:03:04]} Na4 {[%emt 0:00:20]} 26. Rb4 {[%emt 0:02:55]} Qxa5 {[%emt 0:00:27]} 27. Rxc4+ {[%emt 0:00:34]} Kb8 {[%emt 0:00:32]} 28. Ba3 {[%emt 0:05:42]} Rc8 {[%emt 0:10:18]} 29. Rb4+ {[%emt 0:01:40]} Nb6 {[%emt 0:00:46]} 30. Rb3 {[%emt 0:00:54]} Rhd8 {[%emt 0:00:50]} 31. Bb4 {[%emt 0:00:33]} Qxa2 {[%emt 0:02:26]} 32. Bxc3 {[%emt 0:00:02]} Rc5 {[%emt 0:02:32]} 33. Bd3 {[%emt 0:01:46]} Ka8 {[%emt 0:03:30]} 34. Ne2 {[%emt 0:00:31]} Nf8 {[%emt 0:03:37]} 35. Nc1 {[%emt 0:00:55]} Qa4 {[%emt 0:00:26]} 36. Bb4 {[%emt 0:00:56]} Rcc8 {[%emt 0:01:28]} 37. Qe2 {[%emt 0:00:49]} Nfd7 {[%emt 0:03:23]} 38. Ba6 {[%emt 0:00:35]} Nc5 {[%emt 0:00:56]} 39. Bxc8 {[%emt 0:00:30]} Nxb3 {[%emt 0:00:38]} 40. Nxb3 {[%emt 0:00:00]} Rxc8 {[%emt 0:00:00]} 41. Qd2 {[%emt 0:07:21]} Qc6 {[%emt 0:06:00]} 42. Nc5 {[%emt 0:00:49]} Na4 {[%emt 0:04:48]} 43. Nxa4 {[%emt 0:00:44]} Qxa4 {[%emt 0:00:06]} 44. Qd5+ {[%emt 0:00:45]} Qc6 {[%emt 0:00:05]} 45. c4 {[%emt 0:00:21]} Qxd5 {[%emt 0:00:55]} 46. cxd5 {[%emt 0:00:01]} Rc4 {[%emt 0:00:25]} 47. fxg6 {[%emt 0:00:42]} fxg6 {[%emt 0:00:09]} 48. Be7 {[%emt 0:00:05]} Rxe4 {[%emt 0:01:14]} 0-1

[Event "Reykjavik Open 2022"]
[Site "Reykjavik"]
[Date "2022.04.10"]
[Round "6.23"]
[White "Romanishin, Oleg M"]
[Black "Ritzka, Simon"]
[Result "1-0"]
[ECO "E06"]
[WhiteElo "2415"]
[BlackElo "2038"]
[Annotator "NA RC"]
[PlyCount "41"]
[EventDate "2022.04.06"]
[EventCountry "ISL"]
[SourceTitle "playchess.com"]
[Source "ChessBase"]
[SourceQuality "1"]
[TimeControl "40/5400+30:1800+30"]

1. Nf3 {[%emt 0:00:52]} d5 {[%emt 0:00:07]} 2. g3 {[%emt 0:01:26]} Nf6 {[%emt 0:00:12]} 3. Bg2 {[%emt 0:00:06]} e6 {[%emt 0:00:07]} 4. c4 {[%emt 0:05:23]} Be7 {[%emt 0:01:24]} 5. d4 {[%emt 0:00:18]} O-O {[%emt 0:00:08]} 6. Qc2 {[%emt 0:01:35]} a6 {[%emt 0:01:36]} 7. Nbd2 {[%emt 0:03:06]} c5 {[%emt 0:21:26]} 8. dxc5 {[%emt 0:00:35]} Bxc5 {[%emt 0:10:08]} 9. O-O {[%emt 0:05:01]} dxc4 {[%emt 0:11:08]} 10. Nxc4 {[%emt 0:00:55]} b5 {[%emt 0:03:29]} 11. Nce5 {[%emt 0:05:15]} Qc7 {[%emt 0:01:28]} 12. Be3 {[%emt 0:03:39]} Bd6 {[%emt 0:11:54]} 13. Qxc7 {[%emt 0:00:43]} Bxc7 {[%emt 0:00:07]} 14. Rac1 {[%emt 0:03:49]} Nd5 {[%emt 0:08:53]} 15. Bc5 {[%emt 0:15:25]} Re8 {[%emt 0:01:46]} 16. e4 {[%emt 0:01:49]} Nf6 {[%emt 0:01:29]} 17. Bd4 {[%emt 0:00:15]} Bd6 {[%emt 0:05:18]} 18. Nxf7 {[%emt 0:01:46]} Kxf7 {[%emt 0:00:36]} 19. e5 {[%emt 0:00:07]} Nd5 {[%emt 0:02:33]} 20. exd6 {[%emt 0:00:14]} Nd7 {[%emt 0:05:20]} 21. Ng5+ {[%emt 0:01:12]} 1-0

[Event "Reykjavik Open 2022"]
[Site "Reykjavik"]
[Date "2022.04.10"]
[Round "6.24"]
[White "Bosboom, Ardin"]
[Black "Willow, Jonah B"]
[Result "0-1"]
[ECO "E25"]
[WhiteElo "2090"]
[BlackElo "2365"]
[Annotator "NA RC"]
[PlyCount "64"]
[EventDate "2022.04.06"]
[EventCountry "ISL"]
[SourceTitle "playchess.com"]
[Source "ChessBase"]
[SourceQuality "1"]
[TimeControl "40/5400+30:1800+30"]

1. d4 {[%emt 0:05:23]} Nf6 {[%emt 0:00:09]} 2. c4 {[%emt 0:00:10]} e6 {[%emt 0:00:06]} 3. Nc3 {[%emt 0:00:06]} Bb4 {[%emt 0:00:07]} 4. f3 {[%emt 0:00:06]} d5 {[%emt 0:00:19]} 5. a3 {[%emt 0:00:12]} Bxc3+ {[%emt 0:00:05]} 6. bxc3 {[%emt 0:00:03]} c5 {[%emt 0:00:05]} 7. cxd5 {[%emt 0:00:05]} Nxd5 {[%emt 0:00:08]} 8. dxc5 {[%emt 0:00:05]} f5 {[%emt 0:00:06]} 9. Nh3 {[%emt 0:03:30]} Qa5 {[%emt 0:00:28]} 10. e4 {[%emt 0:05:22]} fxe4 {[%emt 0:00:48]} 11. fxe4 {[%emt 0:00:22]} Nf6 {[%emt 0:00:21]} 12. Nf2 {[%emt 0:18:38]} Nbd7 {[%emt 0:02:17]} 13. Qd4 {[%emt 0:06:11]} Nxc5 {[%emt 0:15:16]} 14. Qb4 {[%emt 0:00:36]} Qxb4 {[%emt 0:01:25]} 15. cxb4 {[%emt 0:00:05]} Ncxe4 {[%emt 0:01:02]} 16. Nxe4 {[%emt 0:00:05]} Nxe4 {[%emt 0:00:02]} 17. Bd3 {[%emt 0:00:15]} Nf6 {[%emt 0:00:41]} 18. O-O {[%emt 0:02:07]} Bd7 {[%emt 0:02:19]} 19. Be3 {[%emt 0:09:00]} O-O {[%emt 0:12:40]} 20. b5 {[%emt 0:11:28]} e5 {[%emt 0:11:48]} 21. Bc4+ {[%emt 0:10:22]} Kh8 {[%emt 0:00:08]} 22. Rad1 {[%emt 0:00:04]} Rac8 {[%emt 0:09:52]} 23. Be2 {[%emt 0:04:53]} Rc2 {[%emt 0:01:44]} 24. Bd3 {[%emt 0:05:57]} Rc3 {[%emt 0:00:10]} 25. Bxa7 {[%emt 0:01:09]} Bg4 {[%emt 0:00:51]} 26. Rd2 {[%emt 0:04:11]} Rd8 {[%emt 0:00:35]} 27. h3 {[%emt 0:00:23]} Bh5 {[%emt 0:00:52]} 28. g4 {[%emt 0:01:01]} Bg6 {[%emt 0:00:50]} 29. g5 {[%emt 0:00:16]} Rcxd3 {[%emt 0:00:40]} 30. Rxd3 {[%emt 0:02:27]} Bxd3 {[%emt 0:00:05]} 31. gxf6 {[%emt 0:00:06]} Bxf1 {[%emt 0:00:03]} 32. f7 {[%emt 0:00:09]} Bc4 {[%emt 0:00:26]} 0-1

[Event "Reykjavik Open 2022"]
[Site "Reykjavik"]
[Date "2022.04.10"]
[Round "6.25"]
[White "Jonsson, Gauti Pall"]
[Black "Baskin, Robert"]
[Result "0-1"]
[ECO "A85"]
[WhiteElo "2048"]
[BlackElo "2383"]
[Annotator "NA RC"]
[PlyCount "70"]
[EventDate "2022.04.06"]
[EventCountry "ISL"]
[SourceTitle "playchess.com"]
[Source "ChessBase"]
[SourceQuality "1"]
[TimeControl "40/5400+30:1800+30"]

1. c4 {[%emt 0:04:02]} f5 {[%emt 0:06:01]} 2. d4 {[%emt 0:01:24]} Nf6 {[%emt 0:00:19]} 3. Nc3 {[%emt 0:01:38]} d6 {[%emt 0:01:03]} 4. Bg5 {[%emt 0:02:34]} Nbd7 {[%emt 0:00:20]} 5. Qc2 {[%emt 0:06:35]} g6 {[%emt 0:00:09]} 6. e4 {[%emt 0:03:37]} fxe4 {[%emt 0:00:54]} 7. Nxe4 {[%emt 0:02:16]} Bg7 {[%emt 0:04:31]} 8. Bd3 {[%emt 0:05:20]} Nxe4 {[%emt 0:04:15]} 9. Bxe4 {[%emt 0:03:31]} Bxd4 {[%emt 0:05:09]} 10. Ne2 {[%emt 0:07:16]} Bg7 {[%emt 0:00:57]} 11. h4 {[%emt 0:06:22]} Nc5 {[%emt 0:05:18]} 12. Ng3 {[%emt 0:14:01]} c6 {[%emt 0:05:59]} 13. O-O {[%emt 0:07:24]} O-O {[%emt 0:13:25]} 14. h5 {[%emt 0:02:34]} h6 {[%emt 0:02:37]} 15. Bd2 {[%emt 0:04:15]} Nxe4 {[%emt 0:01:26]} 16. Qxe4 {[%emt 0:00:16]} g5 {[%emt 0:00:37]} 17. f4 {[%emt 0:03:01]} gxf4 {[%emt 0:02:32]} 18. Bxf4 {[%emt 0:01:52]} Rf6 {[%emt 0:12:36]} 19. Rae1 {[%emt 0:06:20]} Qf8 {[%emt 0:08:56]} 20. Bd2 {[%emt 0:02:17]} e6 {[%emt 0:03:25]} 21. Bc3 {[%emt 0:02:01]} e5 {[%emt 0:00:43]} 22. Qd3 {[%emt 0:02:16]} Rf4 {[%emt 0:09:45]} 23. Rxf4 {[%emt 0:02:26]} Qxf4 {[%emt 0:00:36]} 24. Rf1 {[%emt 0:01:22]} Qg4 {[%emt 0:00:37]} 25. c5 {[%emt 0:04:06]} d5 {[%emt 0:01:15]} 26. Nf5 {[%emt 0:03:28]} Bxf5 {[%emt 0:02:26]} 27. Rxf5 {[%emt 0:00:17]} Re8 {[%emt 0:00:38]} 28. Qf1 {[%emt 0:00:39]} d4 {[%emt 0:02:33]} 29. Bd2 {[%emt 0:00:37]} e4 {[%emt 0:01:03]} 30. Be1 {[%emt 0:01:11]} d3 {[%emt 0:01:13]} 31. Rf4 {[%emt 0:00:15]} Bd4+ {[%emt 0:01:11]} 32. Kh1 {[%emt 0:00:01]} Qxh5+ {[%emt 0:00:08]} 33. Rh4 {[%emt 0:00:10]} Qe2 {[%emt 0:01:29]} 34. Qf4 {[%emt 0:01:21]} Qxe1+ {[%emt 0:00:24]} 35. Kh2 {[%emt 0:00:06]} Be5 {[%emt 0:00:19]} 0-1